bitfinex/quotes_BTCUSD_20251221
["timestamp","ask_amount","ask_price","bid_price","bid_amount"]
[1766326026822,0.00212465,88051.0,88048.0,0.03634939]
[1766326027211,0.04548,88058.0,88048.0,0.03634939]
[1766326027212,0.00576,88057.0,88048.0,0.03634939]
[1766326028706,0.00576,88057.0,88030.0,0.01135976]
[1766326028909,0.01135705,88051.0,88030.0,0.00010726]
[1766326029115,0.05124,88050.0,88024.0,0.06086492]
[1766326029312,0.8165,88049.0,88024.0,0.06086492]
[1766326029509,0.05134728,88050.0,88024.0,0.06086492]
[1766326029890,0.34804,88049.0,88024.0,0.06086492]
[1766326030094,0.05134728,88050.0,88025.0,0.01363249]
[1766326030295,0.34804,88046.0,88025.0,0.01363249]
[1766326030500,0.05134728,88050.0,88025.0,0.01363249]
[1766326030501,0.34804,88044.0,88025.0,0.01363249]
[1766326030710,0.34804,88041.0,88023.0,0.00576]
[1766326030918,0.00576,88043.0,88041.0,0.000549]
[1766326031146,0.00576,88043.0,88028.0,0.07457]
[1766326031147,0.00576,88048.0,88032.0,0.00576]
[1766326031350,0.34804,88044.0,88020.0,0.42979]
[1766326031556,0.46846,88039.0,88021.0,0.00576]
[1766326031784,0.00576,88042.0,88039.0,0.000549]
[1766326031993,0.00576,88046.0,88030.0,0.00576]
[1766326032263,0.34804,88042.0,88028.0,0.00576]
[1766326032877,0.00010728,88050.0,88028.0,0.00576]
[1766326032878,0.00576,88044.0,88028.0,0.00576]
[1766326033115,0.3538,88044.0,88029.0,0.00576]
[1766326034068,0.3538,88044.0,88026.0,0.42979]
[1766326034273,0.8165,88043.0,88029.0,0.00576]
[1766326034504,0.34804,88042.0,88029.0,0.00576]
[1766326035315,0.00576,88044.0,88029.0,0.00576]
[1766326035464,0.34804,88039.0,88027.0,0.00576]
[1766326035671,0.00576,88044.0,88027.0,0.00576]
[1766326036102,0.46846,88043.0,88026.0,0.00576]
[1766326036333,0.46846,88042.0,88026.0,0.00576]
[1766326036525,0.00576,88044.0,88027.0,0.50271]
[1766326036734,0.00576,88044.0,88028.0,0.07292]
[1766326037680,0.00576,88044.0,88029.0,0.01135989]
[1766326038130,0.34804,88043.0,88026.0,0.06704209]
[1766326038430,0.34804,88043.0,88026.0,0.07840236]
[1766326038653,0.34804,88043.0,88030.0,0.01135976]
[1766326038853,0.34804,88043.0,88028.0,0.01136002]
[1766326039171,0.8165,88043.0,88026.0,0.06704209]
[1766326039514,0.34804,88040.0,88026.0,0.06128209]
[1766326039715,0.8165,88039.0,88025.0,0.06128209]
[1766326039922,0.8165,88039.0,88024.0,0.06128209]
[1766326040360,0.01364334,88038.0,88024.0,0.06128209]
[1766326040570,0.34804,88041.0,88025.0,0.00576]
[1766326040769,0.00576,88044.0,88025.0,0.00576]
[1766326040770,0.46846,88036.0,88025.0,0.00576]
[1766326041003,0.46846,88036.0,88020.0,0.06128209]
[1766326041168,0.46846,88036.0,88021.0,0.00576]
[1766326041370,0.00576,88037.0,88021.0,0.00576]
[1766326041371,0.46846,88034.0,88025.0,0.04088409]
[1766326041983,0.34804,88035.0,88025.0,0.04088409]
[1766326042184,0.00576,88037.0,88035.0,0.00055]
[1766326042384,0.00576,88042.0,88029.0,0.48430596]
[1766326042698,0.00576,88042.0,88029.0,0.47067409]
[1766326048110,0.8165,88041.0,88029.0,0.04088409]
[1766326048760,0.8165,88041.0,88030.0,0.00576]
[1766326049522,0.46846,88037.0,88030.0,0.00576]
[1766326049729,0.8165,88037.0,88029.0,0.04088409]
[1766326049939,0.00576,88042.0,88029.0,0.04664409]
[1766326051038,0.82226,88042.0,88029.0,0.04664409]
[1766326051342,0.00010728,88050.0,88033.0,0.07373]
[1766326051343,0.00576,88046.0,88033.0,0.07373]
[1766326051540,0.00010728,88050.0,88034.0,0.42979]
[1766326051733,0.00010728,88050.0,88046.0,0.00055]
[1766326051968,0.00010728,88050.0,88041.0,0.00576]
[1766326052171,0.00010728,88050.0,88042.0,0.04088409]
[1766326054595,0.32889728,88050.0,88042.0,0.04088409]
[1766326055431,0.32889728,88050.0,88041.0,0.04664409]
[1766326055930,0.00010728,88050.0,88042.0,0.07278]
[1766326056111,0.00010728,88050.0,88041.0,0.04664409]
[1766326056312,0.00010728,88050.0,88041.0,0.00576]
[1766326056528,0.00010728,88050.0,88040.0,0.04088409]
[1766326056529,0.00010728,88050.0,88042.0,0.00576]
[1766326058362,2.8e-07,88050.0,88042.0,0.00576]
[1766326058939,2.8e-07,88050.0,88046.0,0.03634939]
[1766326059178,2.8e-07,88050.0,88049.0,0.50314]
[1766326059537,0.32529,88071.0,88050.0,0.07112]
[1766326059736,0.00576,88072.0,88053.0,0.43161]
[1766326059943,0.00576,88072.0,88054.0,0.00576]
[1766326060399,0.32529,88068.0,88054.0,0.005654]
[1766326061331,0.00576,88072.0,88055.0,0.43161]
[1766326061532,0.00576,88072.0,88056.0,0.43161]
[1766326061931,0.00576,88072.0,88063.0,0.03634939]
[1766326062373,0.76417,88072.0,88063.0,0.03634939]
[1766326062893,0.00576,88072.0,88064.0,0.06986]
[1766326063040,0.00576,88072.0,88063.0,0.03634939]
[1766326064284,0.0002,88075.0,88064.0,0.01362645]
[1766326064479,0.0002,88079.0,88075.0,0.0002]
[1766326064674,0.0003073,88079.0,88075.0,0.0002]
[1766326064876,0.0003073,88079.0,88070.0,0.43161]
[1766326065093,0.00068179,88071.0,88069.0,0.07472]
[1766326065314,0.0003073,88079.0,88071.0,0.00034721]
[1766326065516,0.0001,88100.0,88077.0,0.06828]
[1766326065674,0.0001,88100.0,88073.0,0.01135421]
[1766326065675,0.00572,88096.0,88080.0,0.43161]
[1766326065880,0.00572,88096.0,88082.0,0.43161]
[1766326066504,0.00572,88096.0,88078.0,0.00572]
[1766326066505,0.0001,88100.0,88085.0,0.03634939]
[1766326066669,0.0001,88100.0,88090.0,0.0001]
[1766326066871,0.0001,88100.0,88086.0,0.44523305]
[1766326066872,0.0001,88100.0,88086.0,0.43161]
[1766326067119,0.0001,88100.0,88091.0,0.01135189]
[1766326067347,0.43312,88108.0,88091.0,0.01135189]
[1766326067348,0.0001,88110.0,88091.0,0.43161]
[1766326067551,0.00045759,88110.0,88100.0,0.43161]
[1766326067875,0.00045759,88110.0,88099.0,0.00572]
[1766326067876,0.32574759,88110.0,88099.0,0.00572]
[1766326068074,0.000552,88099.0,88085.0,0.04088409]
[1766326068294,0.000552,88099.0,88086.0,0.00572]
[1766326068499,0.000552,88099.0,88081.0,0.04088409]
[1766326068758,0.43312,88097.0,88072.0,0.43161]
[1766326069033,0.43312,88089.0,88070.0,0.06097]
[1766326069238,0.000552,88070.0,88058.0,0.04088409]
[1766326069533,0.000552,88070.0,88059.0,0.00572]
[1766326069711,0.32529,88072.0,88059.0,0.00572]
[1766326070287,0.000552,88059.0,88048.0,0.06097]
[1766326070631,0.000552,88059.0,88049.0,0.00572]
[1766326070885,0.32529,88066.0,88049.0,0.00572]
[1766326071056,0.75841,88066.0,88053.0,0.01135679]
[1766326071278,0.00572,88069.0,88050.0,0.03634939]
[1766326071504,0.000552,88050.0,88049.0,0.00572]
[1766326071708,0.000552,88050.0,88048.0,0.0001073]
[1766326071845,0.43312,88054.0,88043.0,0.00572]
[1766326072060,0.32529,88053.0,88043.0,0.00572]
[1766326072281,0.43884,88061.0,88043.0,0.00572]
[1766326072485,0.32529,88056.0,88043.0,0.00572]
[1766326072747,0.43312,88056.0,88041.0,0.01135834]
[1766326072960,0.32529,88080.0,88049.0,0.01135731]
[1766326073092,0.22702485,88097.0,88056.0,0.000547]
[1766326073093,0.43312,88075.0,88056.0,0.000547]
[1766326073276,0.32529,88070.0,88056.0,0.000547]
[1766326073480,0.0001,88058.0,88055.0,0.03634939]
[1766326073682,0.0001,88058.0,88043.0,0.48839984]
[1766326073683,0.000552,88055.0,88051.0,0.00572]
[1766326073878,0.000552,88055.0,88040.0,0.01135847]
[1766326073879,0.000552,88055.0,88043.0,0.01707808]
[1766326074082,0.0001,88058.0,88044.0,0.01135795]
[1766326074283,0.0001,88058.0,88047.0,0.01135757]
[1766326074502,0.43312,88080.0,88056.0,0.48999]
[1766326074701,0.00572,88079.0,88057.0,0.00572]
[1766326074936,0.00572,88079.0,88058.0,0.01135615]
[1766326074937,0.75841,88077.0,88058.0,0.01135615]
[1766326075113,0.75841,88077.0,88059.0,0.01135602]
[1766326075312,0.75841,88077.0,88060.0,0.01135589]
[1766326075664,0.32529,88075.0,88062.0,0.01135563]
[1766326075808,0.00024781,88079.0,88075.0,0.000547]
[1766326076229,0.00024781,88079.0,88070.0,0.03634939]
[1766326076230,0.00024781,88079.0,88070.0,0.04770399]
[1766326076437,0.43312,88092.0,88071.0,0.43161]
[1766326076747,0.00572,88086.0,88071.0,0.43161]
[1766326076903,0.00582726,88086.0,88071.0,0.43161]
[1766326077452,0.04544,88096.0,88074.0,0.05684]
[1766326077608,0.00572,88090.0,88075.0,0.48262]
[1766326077948,0.04544,88096.0,88077.0,0.05101]
[1766326078150,0.00572,88098.0,88081.0,0.05101]
[1766326078350,0.00572,88098.0,88084.0,0.43161]
[1766326079097,0.00572,88098.0,88087.0,0.01135241]
[1766326079297,0.00572,88098.0,88086.0,0.43161]
[1766326079539,0.32539,88110.0,88098.0,0.000547]
[1766326079740,0.00572,88109.0,88098.0,0.000547]
[1766326079913,0.00572,88109.0,88094.0,0.43161]
[1766326080116,0.00572,88109.0,88095.0,0.05675691]
[1766326080356,0.00572,88109.0,88094.0,0.49341151]
[1766326080497,0.00572,88109.0,88094.0,0.05045]
[1766326080697,0.32529,88106.0,88092.0,0.00572]
[1766326080964,0.00572,88109.0,88095.0,0.48163]
[1766326081738,0.0001,88110.0,88095.0,0.48163]
[1766326081961,0.00572,88116.0,88097.0,0.43161]
[1766326082139,0.00572,88116.0,88099.0,0.43161]
[1766326082345,0.0001,88117.0,88103.0,0.48079]
[1766326082551,0.0001,88117.0,88103.0,0.43161]
[1766326082751,0.0001,88117.0,88104.0,0.01362026]
[1766326082954,0.0001,88117.0,88106.0,0.01134996]
[1766326083158,0.0022,88120.0,88109.0,0.01134957]
[1766326083395,0.32529,88147.0,88123.0,0.04843]
[1766326083566,0.32529,88144.0,88141.0,0.03634939]
[1766326083899,0.00099999,88180.0,88142.0,0.03634939]
[1766326084104,0.03634939,88163.0,88150.0,0.43161]
[1766326084257,0.03634939,88170.0,88151.0,0.43161]
[1766326084458,0.03634939,88170.0,88142.0,0.01134532]
[1766326084653,0.03634939,88170.0,88139.0,0.00576]
[1766326084838,0.03634939,88170.0,88142.0,0.43161]
[1766326085038,0.03634939,88170.0,88144.0,0.01134507]
[1766326085244,0.03634939,88168.0,88145.0,0.01361393]
[1766326085444,0.01701316,88167.0,88148.0,0.03634939]
[1766326085656,0.00020733,88178.0,88166.0,0.03634939]
[1766326085945,0.00020733,88178.0,88170.0,0.05670828]
[1766326086228,0.34108,88190.0,88171.0,0.01360991]
[1766326086432,0.34108,88188.0,88174.0,0.01134121]
[1766326086655,0.34108,88188.0,88175.0,0.01134108]
[1766326086787,0.34108,88188.0,88174.0,0.01144854]
[1766326086788,0.35358069,88200.0,88190.0,0.01133915]
[1766326087022,0.01250069,88200.0,88198.0,0.03614939]
[1766326087434,0.34108,88225.0,88200.0,0.43831]
[1766326087639,0.01133619,88213.0,88192.0,0.00576]
[1766326087866,0.00576,88220.0,88196.0,0.03634939]
[1766326087867,0.44033,88219.0,88196.0,0.03634939]
[1766326088064,0.34108,88212.0,88196.0,0.03579939]
[1766326088267,0.22667825,88231.0,88196.0,0.03579939]
[1766326088268,0.34108,88228.0,88211.0,0.03634939]
[1766326088491,0.01123564,88257.0,88192.0,0.43831]
[1766326088492,0.34108,88217.0,88192.0,0.43831]
[1766326088627,0.34108,88213.0,88202.0,0.03634939]
[1766326089050,0.00576,88215.0,88203.0,0.03634939]
[1766326089251,0.00576,88215.0,88204.0,0.01360482]
[1766326089502,0.00586721,88215.0,88195.0,0.00576]
[1766326089687,0.34108,88212.0,88200.0,0.03634939]
[1766326089857,0.34108,88212.0,88182.0,0.01134018]
[1766326089858,0.01133684,88208.0,88181.0,0.03634939]
[1766326090066,0.34108,88191.0,88168.0,0.43831]
[1766326090275,0.44033,88184.0,88152.0,0.43831]
[1766326090479,0.44033,88184.0,88138.0,0.22691484]
[1766326090480,0.07946508,88190.0,88148.0,0.04210939]
[1766326090481,0.34108,88167.0,88148.0,0.04210939]
[1766326090653,0.00576,88167.0,88149.0,0.49503186]
[1766326090858,0.34108,88165.0,88127.0,0.01134726]
[1766326091051,0.44033,88156.0,88134.0,0.03634939]
[1766326091268,0.34108,88153.0,88131.0,0.01134674]
[1766326091569,0.44033,88151.0,88134.0,0.03634939]
[1766326091780,0.34108,88164.0,88151.0,0.001099]
[1766326092028,0.00576,88167.0,88151.0,0.001099]
[1766326092220,0.00576,88167.0,88149.0,0.01134442]
[1766326092425,0.00576,88167.0,88148.0,0.03634939]
[1766326092677,0.44033,88161.0,88139.0,0.00576]
[1766326092889,0.34108,88160.0,88139.0,0.01710571]
[1766326093118,0.00576,88159.0,88140.0,0.01134558]
[1766326093270,0.34684,88159.0,88139.0,0.00576]
[1766326093879,0.34108,88157.0,88139.0,0.00576]
[1766326094311,0.34108,88157.0,88134.0,0.03634939]
[1766326094536,0.44033,88148.0,88131.0,0.00035781]
[1766326094726,0.34684,88147.0,88131.0,0.00035781]
[1766326094925,0.34684,88147.0,88131.0,0.01170455]
[1766326095231,0.00576,88149.0,88147.0,0.000549]
[1766326095532,0.00576,88155.0,88149.0,0.00055]
[1766326095746,0.22680255,88183.0,88147.0,0.000549]
[1766326095747,0.0454,88177.0,88152.0,0.01134404]
[1766326095959,0.78141,88175.0,88152.0,0.43831]
[1766326096165,0.01134005,88183.0,88145.0,0.01134494]
[1766326096166,0.34108,88203.0,88174.0,0.03634939]
[1766326096361,0.34108,88206.0,88175.0,0.45767929]
[1766326096506,0.00199998,88230.0,88176.0,0.01360914]
[1766326096507,0.34108,88192.0,88176.0,0.01360914]
[1766326096706,0.44033,88198.0,88174.0,0.03634939]
[1766326097041,0.03634939,88225.0,88174.0,0.03634939]
[1766326097042,0.00297113,88175.0,88174.0,0.03634939]
[1766326097223,0.34108,88191.0,88174.0,0.0534506]
[1766326097427,0.00576,88199.0,88188.0,0.03634939]
[1766326097623,0.00576,88199.0,88190.0,0.03634939]
[1766326098385,0.22666045,88238.0,88190.0,0.04210939]
[1766326098386,0.4418,88209.0,88190.0,0.04210939]
[1766326098538,0.34151,88208.0,88190.0,0.04210939]
[1766326098938,0.00010723,88209.0,88208.0,0.000549]
[1766326099147,0.33575,88219.0,88208.0,0.000549]
[1766326099325,0.38115,88235.0,88219.0,0.000442]
[1766326099531,0.00576,88234.0,88218.0,0.03634939]
[1766326100329,0.00576,88234.0,88207.0,0.46145]
[1766326100330,0.4418,88232.0,88207.0,0.46145]
[1766326100557,0.4418,88232.0,88192.0,0.46145]
[1766326100558,0.4418,88225.0,88192.0,0.46145]
[1766326100755,0.33575,88217.0,88200.0,0.00576]
[1766326100968,0.33575,88232.0,88205.0,0.03634939]
[1766326101172,0.01133452,88226.0,88191.0,0.46145]
[1766326101352,0.05911021,88231.0,88150.0,0.04088409]
[1766326101353,0.01133619,88213.0,88192.0,0.00576]
[1766326101553,0.01700198,88225.0,88196.0,0.01133838]
[1766326101554,0.00576,88212.0,88196.0,0.01133838]
[1766326101747,0.00576,88212.0,88192.0,0.00576]
[1766326101929,0.00576,88212.0,88196.0,0.01133838]
[1766326102153,0.00576,88212.0,88196.0,0.47278838]
[1766326102372,0.00576,88212.0,88197.0,0.46145]
[1766326102615,0.00576,88212.0,88181.0,0.46145]
[1766326102798,0.00576,88212.0,88175.0,0.16204]
[1766326102799,0.33575,88207.0,88175.0,0.16204]
[1766326102992,0.33575,88203.0,88176.0,0.46145]
[1766326103220,0.4418,88204.0,88177.0,0.00576]
[1766326103221,0.33575,88201.0,88177.0,0.00576]
[1766326103394,0.4418,88198.0,88174.0,0.03634939]
[1766326103599,0.33575,88197.0,88174.0,0.03634939]
[1766326103798,0.35275757,88196.0,88175.0,0.00576]
[1766326104020,0.34151,88195.0,88175.0,0.00586723]
[1766326104245,0.34151,88195.0,88175.0,0.00010723]
[1766326104246,0.33575,88189.0,88175.0,0.00010723]
[1766326104379,0.03634939,88192.0,88158.0,0.46145]
[1766326104380,0.33575,88184.0,88158.0,0.46145]
[1766326104609,0.33575,88182.0,88162.0,0.01134275]
[1766326104798,0.03634939,88192.0,88162.0,0.01134275]
[1766326104799,0.33575,88180.0,88162.0,0.01134275]
[1766326105026,0.00576,88181.0,88180.0,0.000549]
[1766326105243,0.00576,88181.0,88169.0,0.01361022]
[1766326105454,0.00521,88181.0,88172.0,0.01134146]
[1766326105661,0.00576,88192.0,88176.0,0.46145]
[1766326105875,0.00576,88192.0,88179.0,0.15568]
[1766326106109,0.00576,88192.0,88186.0,0.01133966]
[1766326106324,0.33575,88212.0,88194.0,0.01133863]
[1766326106526,0.00576,88211.0,88195.0,0.47505621]
[1766326106817,0.00576,88211.0,88195.0,0.46145]
[1766326106988,0.00576,88211.0,88188.0,0.15559]
[1766326107204,0.77755,88208.0,88185.0,0.00576]
[1766326107409,0.33575,88207.0,88185.0,0.00576]
[1766326107627,0.00010713,88211.0,88191.0,0.46145]
[1766326107817,0.00586713,88211.0,88191.0,0.46145]
[1766326108031,0.01133375,88232.0,88201.0,0.01133773]
[1766326108032,0.4418,88232.0,88201.0,0.01133773]
[1766326108222,0.4418,88232.0,88205.0,0.01133722]
[1766326108429,0.4418,88232.0,88201.0,0.15329713]
[1766326108430,0.05116,88231.0,88206.0,0.46145]
[1766326108593,0.4418,88230.0,88202.0,0.01133761]
[1766326108980,0.4418,88230.0,88205.0,0.01133722]
[1766326109127,0.4418,88230.0,88205.0,0.46145]
[1766326109455,0.05116,88231.0,88201.0,0.20998545]
[1766326109456,0.05116,88231.0,88219.0,0.01133542]
[1766326109685,0.33575,88244.0,88223.0,0.46145]
[1766326109875,0.00576,88237.0,88225.0,0.01133465]
[1766326110087,0.00576,88237.0,88228.0,0.01133427]
[1766326110290,0.77755,88266.0,88230.0,0.47278401]
[1766326110520,0.000549,88230.0,88210.0,0.04768597]
[1766326110669,0.000549,88230.0,88215.0,0.01133594]
[1766326110852,0.33575,88232.0,88205.0,0.46145]
[1766326111055,0.00055,88215.0,88203.0,0.45459]
[1766326111245,0.3274,88227.0,88203.0,0.45459]
[1766326111246,0.00576,88222.0,88203.0,0.45459]
[1766326111448,0.00576,88222.0,88205.0,0.01133722]
[1766326111729,0.00576,88222.0,88205.0,0.00010713]
[1766326111921,0.33316,88222.0,88205.0,0.00010713]
[1766326112230,0.44702,88216.0,88205.0,1.3e-07]
[1766326112413,0.3274,88215.0,88205.0,1.3e-07]
[1766326112825,0.3274,88213.0,88205.0,1.3e-07]
[1766326113055,0.00576,88212.0,88205.0,1.3e-07]
[1766326114244,0.44702,88210.0,88205.0,1.3e-07]
[1766326114441,0.3274,88205.0,88179.0,0.01134056]
[1766326114616,0.3274,88205.0,88182.0,0.44883]
[1766326114617,0.00576,88204.0,88182.0,0.44883]
[1766326114795,0.00576,88204.0,88187.0,0.01133953]
[1766326114996,0.00576,88204.0,88182.0,0.47863018]
[1766326115204,0.00576,88204.0,88184.0,0.01133992]
[1766326115444,0.00576,88204.0,88186.0,0.01133966]
[1766326115823,0.00576,88204.0,88186.0,0.46729]
[1766326116028,0.00576,88204.0,88186.0,0.47862966]
[1766326116229,0.00014032,88199.0,88186.0,0.46729]
[1766326116451,0.00014032,88199.0,88172.0,0.05670695]
[1766326116636,0.00014032,88199.0,88167.0,0.263191]
[1766326116637,0.32937,88193.0,88170.0,0.46729]
[1766326116991,0.32937,88191.0,88170.0,0.46729]
[1766326117330,0.05335812,88190.0,88170.0,0.46729]
[1766326117541,0.03634939,88190.0,88164.0,0.46729]
[1766326117745,0.32937,88186.0,88164.0,0.46729]
[1766326117955,0.00576,88185.0,88164.0,0.47863249]
[1766326118161,0.33513,88185.0,88164.0,0.46729]
[1766326118459,0.32927,88181.0,88157.0,0.01134339]
[1766326118660,0.32927,88181.0,88159.0,0.01134314]
[1766326118861,0.32927,88181.0,88163.0,0.01134262]
[1766326119060,0.4805,88181.0,88159.0,0.01134314]
[1766326119311,0.05336005,88180.0,88154.0,0.01134378]
[1766326119514,0.05336005,88180.0,88156.0,0.01134352]
[1766326119715,0.05336005,88180.0,88153.0,0.46729]
[1766326120020,0.53386005,88180.0,88156.0,0.01134352]
[1766326120256,0.53386005,88180.0,88153.0,0.46729]
[1766326120257,0.51684939,88180.0,88153.0,0.46729]
[1766326120451,0.4805,88176.0,88148.0,0.01134455]
[1766326120608,0.80987,88173.0,88146.0,0.01134481]
[1766326120810,0.32937,88165.0,88141.0,0.01134545]
[1766326121007,0.00576,88164.0,88147.0,0.01134468]
[1766326121209,0.32937,88163.0,88141.0,0.46729]
[1766326121392,0.32937,88163.0,88147.0,0.01134468]
[1766326121604,0.0454,88169.0,88153.0,0.01134391]
[1766326121816,0.00576,88168.0,88154.0,0.47863378]
[1766326122008,0.32937,88186.0,88159.0,0.46729]
[1766326122280,0.05116,88185.0,88163.0,0.46729]
[1766326122816,0.05116,88185.0,88163.0,0.47863262]
[1766326123016,0.05116,88185.0,88163.0,0.46729]
[1766326123364,0.4805,88197.0,88170.0,0.01134172]
[1766326123578,0.4805,88197.0,88164.0,0.01361099]
[1766326123579,0.0454,88188.0,88177.0,0.01134082]
[1766326123744,0.00576,88187.0,88179.0,0.01134056]
[1766326124065,0.00576,88186.0,88180.0,0.01360852]
[1766326124473,0.00576,88186.0,88179.0,1.0]
[1766326126381,0.00576,88186.0,88180.0,0.01360852]
[1766326126589,0.00576,88186.0,88180.0,0.02494896]
[1766326126745,0.00576,88186.0,88180.0,0.01360852]
[1766326127267,0.00014032,88199.0,88186.0,0.46729]
[1766326127529,0.32937,88213.0,88185.0,0.03634939]
[1766326127530,0.0454,88215.0,88203.0,0.01133748]
[1766326127705,0.0454,88227.0,88214.0,0.03634939]
[1766326127904,0.0454,88227.0,88215.0,0.01305412]
[1766326127905,0.00576,88226.0,88215.0,0.01305412]
[1766326128086,0.00576,88226.0,88214.0,0.03634939]
[1766326128087,0.00576,88226.0,88216.0,0.01360297]
[1766326128290,0.4805,88242.0,88220.0,0.05667599]
[1766326128511,0.0454,88239.0,88238.0,0.03634939]
[1766326128829,0.0454,88239.0,88238.0,0.03579939]
[1766326129188,0.0454,88239.0,88221.0,0.46729]
[1766326129392,0.0454,88239.0,88229.0,0.03634939]
[1766326130736,0.00035723,88242.0,88229.0,0.03634939]
[1766326130932,0.32937,88239.0,88216.0,0.00576]
[1766326131144,0.00576,88241.0,88221.0,0.01133516]
[1766326131334,0.00576,88241.0,88228.0,0.03634939]
[1766326133449,0.00576,88241.0,88222.0,0.01133504]
[1766326133450,0.00576,88241.0,88229.0,0.03634939]
[1766326134261,0.33513,88241.0,88229.0,0.03634939]
[1766326135280,0.01699909,88240.0,88214.0,0.03634939]
[1766326135416,0.32937,88234.0,88214.0,0.03634939]
[1766326135620,0.00576,88233.0,88217.0,0.01133568]
[1766326135826,0.00576,88233.0,88228.0,0.03634939]
[1766326136340,0.00576,88232.0,88228.0,0.03634939]
[1766326136764,0.00576,88232.0,88215.0,0.46729]
[1766326137271,0.32937,88231.0,88214.0,0.03634939]
[1766326137444,0.00576,88232.0,88214.0,0.03634939]
[1766326137445,0.32937,88229.0,88214.0,0.03634939]
[1766326138471,0.32937,88229.0,88200.0,0.23251595]
[1766326138472,0.03634939,88200.0,88170.0,0.0405291]
[1766326138630,0.38053,88199.0,88171.0,0.46729]
[1766326138832,0.01133863,88194.0,88179.0,0.294]
[1766326139057,0.03634939,88184.0,88161.0,0.34269]
[1766326139337,0.76571121,88174.0,88149.0,0.34269]
[1766326139557,0.76571121,88174.0,88149.0,0.00010715]
[1766326139558,0.75437,88165.0,88149.0,0.00010715]
[1766326139757,0.05112,88164.0,88149.0,0.00010715]
[1766326140226,0.03634939,88163.0,88139.0,0.80998]
[1766326140539,0.03634939,88163.0,88126.0,0.34269]
[1766326140540,0.03634939,88146.0,88126.0,0.34269]
[1766326140711,0.05116,88145.0,88126.0,0.34269]
[1766326141058,0.00010701,88146.0,88129.0,0.34269]
[1766326141258,0.0454,88155.0,88146.0,0.000107]
[1766326141577,0.00576,88154.0,88146.0,0.000107]
[1766326141770,0.00576,88154.0,88145.0,0.46729]
[1766326142090,0.00576,88154.0,88137.0,0.01134597]
[1766326142275,0.00576,88154.0,88137.0,0.00035781]
[1766326143100,0.4805,88181.0,88154.0,0.000549]
[1766326143413,0.05670491,88176.0,88143.0,0.46729]
[1766326143655,0.4805,88172.0,88143.0,0.4786352]
[1766326143774,0.00576,88171.0,88143.0,0.80998]
[1766326143971,0.00576,88171.0,88143.0,0.8213252]
[1766326144226,0.00576,88171.0,88146.0,0.01134481]
[1766326144431,0.4805,88182.0,88150.0,0.01134429]
[1766326144734,0.0454,88170.0,88153.0,0.34269]
[1766326144890,0.00576,88169.0,88155.0,0.34269]
[1766326145092,0.00576,88169.0,88144.0,0.01710507]
[1766326145289,0.00576,88169.0,88151.0,0.50403]
[1766326145492,0.00576,88169.0,88151.0,0.36604]
[1766326146300,0.0454,88179.0,88169.0,0.00054496]
[1766326146500,0.05116,88179.0,88169.0,0.00054496]
[1766326146712,0.05116,88179.0,88169.0,4.96e-06]
[1766326146927,0.05116,88179.0,88159.0,0.01134314]
[1766326147125,0.05116,88179.0,88160.0,0.87007]
[1766326147527,0.05126719,88179.0,88160.0,0.87007]
[1766326147959,0.06802726,88200.0,88179.0,0.00044781]
[1766326148156,0.0454,88190.0,88179.0,0.00044781]
[1766326148358,0.00576,88189.0,88179.0,0.00044781]
[1766326148530,0.00586,88189.0,88169.0,0.0001]
[1766326148728,0.00586,88189.0,88169.0,0.00020719]
[1766326149131,0.00586,88189.0,88170.0,0.87007]
[1766326149362,0.00586,88189.0,88169.0,0.00020719]
[1766326150274,0.00586,88189.0,88169.0,0.92698616]
[1766326150572,0.00586,88189.0,88173.0,0.01134134]
[1766326150805,0.00586,88189.0,88169.0,0.01154904]
[1766326151008,0.00586,88189.0,88169.0,0.88161904]
[1766326151132,0.00586,88189.0,88170.0,0.50403]
[1766326151323,0.00586,88189.0,88171.0,0.36604]
[1766326151606,0.00586,88189.0,88170.0,0.50403]
[1766326151607,0.0001,88189.0,88172.0,0.50403]
[1766326151796,0.00576,88188.0,88176.0,0.50403]
[1766326152008,0.00576,88188.0,88176.0,0.51537095]
[1766326152214,0.00576,88188.0,88173.0,0.01134134]
[1766326152215,0.33507,88216.0,88189.0,0.50403]
[1766326152411,0.33507,88216.0,88186.0,0.09526847]
[1766326152412,0.0454,88219.0,88196.0,0.50403]
[1766326152644,0.85478,88218.0,88195.0,0.01133851]
[1766326152844,0.05666685,88235.0,88200.0,0.01133786]
[1766326153046,0.0272308,88227.0,88201.0,0.50403]
[1766326153184,0.50757,88224.0,88193.0,0.51536876]
[1766326153383,0.50757,88224.0,88196.0,0.01133838]
[1766326153584,0.50757,88224.0,88201.0,0.50403]
[1766326153585,0.00010721,88224.0,88201.0,0.50403]
[1766326153823,0.00010721,88224.0,88201.0,0.51536773]
[1766326154063,0.00010721,88224.0,88202.0,0.87007]
[1766326154064,0.00576,88223.0,88202.0,0.87007]
[1766326154185,0.50757,88222.0,88194.0,0.01133863]
[1766326154386,0.50757,88222.0,88193.0,0.87007]
[1766326154589,0.01700275,88221.0,88193.0,0.87007]
[1766326154812,0.53590791,88221.0,88193.0,0.87007]
[1766326155065,0.53590791,88221.0,88193.0,0.88140876]
[1766326155066,0.34891,88220.0,88193.0,0.88140876]
[1766326155295,0.00576,88223.0,88198.0,0.50403]
[1766326155487,0.00576,88223.0,88198.0,0.87007]
[1766326155925,0.00576,88223.0,88198.0,0.88140812]
[1766326156141,0.00576,88223.0,88197.0,0.01133825]
[1766326156343,0.00576,88223.0,88198.0,0.88140812]
[1766326156646,0.00576,88223.0,88198.0,0.87007]
[1766326157012,0.85751,88222.0,88198.0,0.36604]
[1766326157209,0.85751,88222.0,88202.0,0.05668805]
[1766326157408,0.4016,88221.0,88200.0,0.01133786]
[1766326157647,0.05116,88220.0,88200.0,0.01133786]
[1766326157812,0.35044,88221.0,88203.0,0.01133748]
[1766326158012,0.05116,88220.0,88201.0,0.01133773]
[1766326158213,0.05116,88220.0,88199.0,0.01133799]
[1766326158412,0.00055,88199.0,88192.0,0.01133889]
[1766326158764,0.00055,88199.0,88195.0,0.01133851]
[1766326158958,0.00576,88205.0,88196.0,0.01133838]